[Event "22nd Hoogeveen Open 2018"]
[Site "Hoogeveen"]
[Date "2018.10.25"]
[Round "7"]
[White "Minko, Dmitry"]
[Black "Biermann, Lenhard"]
[Result "1-0"]
[ECO "C18"]
[WhiteElo "2011"]
[BlackElo "2153"]
[Annotator "NA"]
[PlyCount "51"]
[EventDate "2018.10.20"]
[EventType "swiss"]
[EventCountry "NED"]
[SourceTitle "playchess.com"]
[Source "ChessBase"]
[SourceQuality "1"]
[TimeControl "40/5400+30:1800+30"]

{[%evp 15,49,19,12,8,48,35,77,71,82,76,196,189,214,222,211,214,229,271,32767,353,349,347,391,494,32767,350,298,335,32767,291,32767,32767,32767,32767,32767,2277]} 1. e4 {[%emt 0:00:00]} e6 {[%emt 0:00:00]} 2. d4 {[%emt 0:00:00]} d5 {[%emt 0:00:00]} 3. Nc3 {[%emt 0:00:00]} Bb4 {[%emt 0:00:00]} 4. e5 {[%emt 0:00:00]} c5 {[%emt 0:00:00]} 5. a3 {[%emt 0:00:00]} cxd4 {[%emt 0:00:00]} 6. axb4 {[%emt 0:00:03]} dxc3 {[%emt 0:00:00]} 7. Nf3 {[%emt 0:00:08]} Nd7 {[%emt 0:00:16] C18: French: 3 Nc3 Bb4: Main line: 7 h4 and 7 Qg4} (7... Ne7 8. Bd3 Ng6 9. O-O Nc6 10. Bxg6 hxg6 11. bxc3 Qc7 12. Re1 Bd7 13. Bg5 Ne7 14. Qd3 a6 15. Nd4 Rc8 16. Bxe7 Kxe7 {½-½ (24) Neumann,J (2712)-Wiacek,K (2528) ICCF email 2006}) 8. Bd3 {[%emt 0:06:08]} Ne7 {[%emt 0:01:06] LiveBook: 7 Games} 9. Qe2 {[%emt 0:18:25]} Nc6 $146 {[%emt 0:13:07]} ({Predecessor:} 9... Qc7 10. O-O Nc6 11. bxc3 Ncxe5 12. Bf4 Nxf3+ 13. Qxf3 Qxc3 14. Bd6 Qf6 15. Qg3 e5 16. Bxe5 Nxe5 {0-1 (46) Migot,T (2050)-Renaudin,M (2146) Pau 2008}) 10. b5 {[%emt 0:07:37]} Nb4 {[%emt 0:01:40]} 11. bxc3 {[%emt 0:00:28]} Nxd3+ {[%emt 0:00:30]} 12. cxd3 {[%emt 0:00:39]} Qc7 {[%emt 0:04:16] [#]} (12... O-O $16) 13. O-O $1 {[%emt 0:08:20]} Nc5 {[%emt 0:03:53] [#]} 14. Ba3 $1 {[%emt 0:02:45]} Bd7 {[%emt 0:02:07]} 15. Rfb1 {[%emt 0:06:22]} b6 {[%emt 0:03:42]} 16. Nd2 {[%emt 0:03:04]} h5 {[%emt 0:21:40]} 17. d4 {[%emt 0:03:17]} Nb7 {[%emt 0:02:13]} 18. c4 {[%emt 0:07:45]} dxc4 {[%emt 0:07:51]} 19. Nxc4 {[%emt 0:08:09]} f5 {[%emt 0:04:26]} 20. Rc1 {[%emt 0:03:41]} Bxb5 {[%emt 0:03:58]} 21. Qf3 {[%emt 0:00:32]} ({Less strong is} 21. Nd6+ Qxd6 22. Qxb5+ Qd7 $16) 21... Bc6 {[%emt 0:18:10]} 22. Nd6+ {[%emt 0:02:16]} Qxd6 {[%emt 0:00:44]} 23. Rxc6 {[%emt 0:02:14]} Qd7 {[%emt 0:02:00]} 24. Rac1 {[%emt 0:01:47]} Kd8 {[%emt 0:02:18]} 25. Qg3 $18 {[%emt 0:01:21]} Re8 {[%emt 0:00:58]} 26. Qg5+ {[%emt 0:00:11]} 1-0

[Event "22nd Hoogeveen Open 2018"]
[Site "Hoogeveen"]
[Date "2018.10.25"]
[Round "7"]
[White "Van Randtwijk, Mick"]
[Black "Biermann, Florian"]
[Result "0-1"]
[ECO "A47"]
[WhiteElo "1979"]
[BlackElo "2024"]
[Annotator "NA"]
[PlyCount "102"]
[EventDate "2018.10.20"]
[EventType "swiss"]
[EventCountry "NED"]
[SourceTitle "playchess.com"]
[Source "ChessBase"]
[SourceQuality "1"]
[TimeControl "40/5400+30:1800+30"]

1. d4 {[%emt 0:00:00]} Nf6 {[%emt 0:00:00]} 2. Nf3 {[%emt 0:00:00]} b6 {[%emt 0:01:12]} 3. Bf4 {[%emt 0:00:00]} d6 {[%emt 0:00:10]} 4. e3 {[%emt 0:00:33]} g6 {[%emt 0:00:08]} 5. c4 {[%emt 0:01:15]} Bg7 {[%emt 0:00:08]} 6. Nc3 {[%emt 0:00:06]} O-O {[%emt 0:00:13]} 7. Be2 {[%emt 0:01:59]} Bb7 {[%emt 0:01:16]} 8. h3 {[%emt 0:01:13]} Nfd7 {[%emt 0:01:56]} 9. Bg3 {[%emt 0:05:54]} e5 {[%emt 0:06:08]} 10. d5 {[%emt 0:02:08]} Nc5 {[%emt 0:06:10]} 11. h4 {[%emt 0:06:44]} h6 {[%emt 0:04:40]} 12. Nd2 {[%emt 0:07:10]} f5 {[%emt 0:04:01]} 13. f3 {[%emt 0:00:28]} a5 {[%emt 0:01:16]} 14. e4 {[%emt 0:04:00]} a4 {[%emt 0:07:45]} 15. Qc2 {[%emt 0:01:33]} Bc8 {[%emt 0:13:01]} 16. Bf2 {[%emt 0:02:24]} a3 {[%emt 0:03:05]} 17. b4 {[%emt 0:00:51]} Nca6 {[%emt 0:00:54]} 18. Rb1 {[%emt 0:01:42]} Nd7 {[%emt 0:04:51]} 19. Bd3 {[%emt 0:06:51]} f4 {[%emt 0:04:01]} 20. Nb5 {[%emt 0:02:06]} Nf6 {[%emt 0:01:35]} 21. Qb3 {[%emt 0:01:59]} Bd7 {[%emt 0:00:28]} 22. Nxa3 {[%emt 0:01:06]} g5 {[%emt 0:00:45]} 23. hxg5 {[%emt 0:01:48]} hxg5 {[%emt 0:01:49]} 24. Nc2 {[%emt 0:03:48]} Kf7 {[%emt 0:00:15]} 25. c5 {[%emt 0:03:08]} bxc5 {[%emt 0:01:41]} 26. Bxa6 {[%emt 0:00:26]} Rxa6 {[%emt 0:00:10]} 27. bxc5 {[%emt 0:00:12]} Qa8 {[%emt 0:00:46]} 28. c6 {[%emt 0:01:43]} Bc8 {[%emt 0:00:22]} 29. a3 {[%emt 0:01:13]} g4 {[%emt 0:00:42]} 30. Nc4 {[%emt 0:01:54]} gxf3 {[%emt 0:01:21]} 31. gxf3 {[%emt 0:00:33]} Ra4 {[%emt 0:00:43]} 32. Nb2 {[%emt 0:02:34]} Qa5+ {[%emt 0:01:11]} 33. Kd1 {[%emt 0:04:06]} Rxe4 {[%emt 0:00:42]} 34. fxe4 {[%emt 0:01:18]} Nxe4 {[%emt 0:00:18]} 35. Be1 {[%emt 0:02:55]} Bg4+ {[%emt 0:02:21]} 36. Kc1 {[%emt 0:00:04]} Nc5 {[%emt 0:00:58]} 37. Qc4 {[%emt 0:00:11]} Qa8 {[%emt 0:00:39]} 38. Nd3 {[%emt 0:01:31]} Be2 {[%emt 0:00:12]} 39. Nxe5+ {[%emt 0:00:17]} Bxe5 {[%emt 0:00:05]} 40. Qxe2 {[%emt 0:00:07]} Rh8 {[%emt 0:00:16]} 41. Rxh8 {[%emt 0:34:20]} Qxh8 {[%emt 0:30:01]} 42. Qf3 {[%emt 0:03:09]} Qh2 {[%emt 0:00:56]} 43. Bf2 {[%emt 0:01:56]} Qxf2 {[%emt 0:00:14]} 44. Qxf2 {[%emt 0:00:55]} Nd3+ {[%emt 0:00:04]} 45. Kd2 {[%emt 0:00:18]} Nxf2 {[%emt 0:00:05]} 46. Rb7 {[%emt 0:01:26]} Kf6 {[%emt 0:00:56]} 47. Rxc7 {[%emt 0:00:25]} Ne4+ {[%emt 0:00:04]} 48. Kd3 {[%emt 0:00:54]} Nc5+ {[%emt 0:00:50]} 49. Ke2 {[%emt 0:00:23]} Kf5 {[%emt 0:00:09]} 50. Rf7+ {[%emt 0:00:28]} Ke4 {[%emt 0:00:10]} 51. c7 {[%emt 0:00:25]} Kxd5 {[%emt 0:00:00]} 0-1

[Event "22nd Hoogeveen Open 2018"]
[Site "Hoogeveen"]
[Date "2018.10.25"]
[Round "7"]
[White "Maters, Arthur"]
[Black "Wedda, Dries"]
[Result "1/2-1/2"]
[ECO "B90"]
[WhiteElo "1933"]
[BlackElo "2216"]
[Annotator "NA"]
[PlyCount "47"]
[EventDate "2018.10.20"]
[EventType "swiss"]
[EventCountry "NED"]
[SourceTitle "playchess.com"]
[Source "ChessBase"]
[SourceQuality "1"]
[TimeControl "40/5400+30:1800+30"]

1. e4 {[%emt 0:00:00]} c5 {[%emt 0:00:00]} 2. Nf3 {[%emt 0:00:00]} d6 {[%emt 0:00:00]} 3. d4 {[%emt 0:00:00]} cxd4 {[%emt 0:00:00]} 4. Nxd4 {[%emt 0:00:00]} Nf6 {[%emt 0:00:00]} 5. Nc3 {[%emt 0:00:00]} a6 {[%emt 0:00:00]} 6. Rg1 {[%emt 0:00:00]} b5 {[%emt 0:00:45]} 7. g4 {[%emt 0:00:07] B90: Sizilianisch (Najdorf-Variante, Abweichungen)} Bb7 {[%emt 0:00:06]} 8. Bg2 {[%emt 0:00:48]} e5 {[%emt 0:15:17] LiveBook: 4 Games} 9. Nf5 {[%emt 0:04:35]} b4 {[%emt 0:10:47]} 10. g5 {[%emt 0:02:19]} bxc3 {[%emt 0:01:38]} 11. gxf6 {[%emt 0:00:06]} Qxf6 {[%emt 0:01:11]} 12. bxc3 {[%emt 0:03:41]} Nd7 $2 $146 {[%emt 0:19:20]} ({Vorgänger:} 12... g6 $1 $15 {bleibt weiter vorne.} 13. Rb1 Bc6 14. Ne3 Nd7 {½-½ (32) Morais,G (2337)-Siikaluoma,A (2533) ICCF email 2009}) 13. Bh3 {[%emt 0:10:16]} h6 {[%emt 0:06:55] [#]} ({Don't blunder} 13... Bxe4 $2 14. Bg5 $18) 14. Ba3 $1 {[%emt 0:00:21]} Nc5 {[%emt 0:19:28]} 15. Bxc5 {[%emt 0:01:36]} dxc5 {[%emt 0:00:02]} 16. Nxg7+ {[%emt 0:00:15]} Bxg7 {[%emt 0:00:03]} 17. Qd7+ {[%emt 0:00:27]} Kf8 {[%emt 0:00:00]} 18. Qxb7 {[%emt 0:00:13]} Rd8 {[%emt 0:00:04]} 19. Ke2 {[%emt 0:10:02]} Qh4 {[%emt 0:15:28]} 20. Bf5 {[%emt 0:09:27]} Bf6 {[%emt 0:01:13]} 21. Rg4 {[%emt 0:02:33]} Qxh2 {[%emt 0:00:15]} 22. Rag1 {[%emt 0:00:28]} Bh4 $11 {[%emt 0:02:56]} 23. R1g2 {[%emt 0:15:12]} Qh1 {[%emt 0:00:01]} 24. Rg1 {[%emt 0:00:10]} 1/2-1/2

[Event "22nd Hoogeveen Open 2018"]
[Site "Hoogeveen"]
[Date "2018.10.25"]
[Round "7"]
[White "Shakhverdian, William"]
[Black "Achuthan, Dylan"]
[Result "1-0"]
[ECO "B94"]
[WhiteElo "1903"]
[BlackElo "1751"]
[Annotator "NA"]
[PlyCount "33"]
[EventDate "2018.10.20"]
[EventType "swiss"]
[EventCountry "NED"]
[SourceTitle "playchess.com"]
[Source "ChessBase"]
[SourceQuality "1"]
[TimeControl "40/5400+30:1800+30"]

1. e4 {[%emt 0:00:00]} c5 {[%emt 0:00:00]} 2. Nf3 {[%emt 0:00:00]} d6 {[%emt 0:00:00]} 3. d4 {[%emt 0:00:00]} cxd4 {[%emt 0:00:00]} 4. Nxd4 {[%emt 0:00:00]} Nf6 {[%emt 0:00:00]} 5. Nc3 {[%emt 0:00:00]} a6 {[%emt 0:00:00]} 6. Bg5 {[%emt 0:00:00]} Nbd7 {[%emt 0:00:00]} 7. Qe2 {[%emt 0:00:00]} b5 {[%emt 0:00:07]} 8. O-O-O {[%emt 0:04:29]} Bb7 {[%emt 0:05:53]} 9. Bxf6 {[%emt 0:02:45]} Nxf6 {[%emt 0:01:22]} 10. e5 {[%emt 0:02:11]} b4 {[%emt 0:03:44]} 11. exf6 {[%emt 0:01:56]} bxc3 {[%emt 0:01:33]} 12. Nf5 {[%emt 0:01:45]} e6 {[%emt 0:12:09]} 13. fxg7 {[%emt 0:01:50]} Qg5+ {[%emt 0:00:41]} 14. Qe3 {[%emt 0:01:10]} cxb2+ {[%emt 0:05:43]} 15. Kb1 {[%emt 0:00:56]} Qxe3 {[%emt 0:00:17]} 16. gxh8=Q {[%emt 0:01:30]} Qa7 {[%emt 0:01:52]} 17. Nxd6+ {[%emt 0:00:28]} 1-0

[Event "22nd Hoogeveen Open 2018"]
[Site "Hoogeveen"]
[Date "2018.10.25"]
[Round "7"]
[White "Oord, Raymon"]
[Black "Van Dorp, Folke"]
[Result "0-1"]
[ECO "A01"]
[WhiteElo "1900"]
[BlackElo "2097"]
[Annotator "NA"]
[PlyCount "104"]
[EventDate "2018.10.20"]
[EventType "swiss"]
[EventCountry "NED"]
[SourceTitle "playchess.com"]
[Source "ChessBase"]
[SourceQuality "1"]
[TimeControl "40/5400+30:1800+30"]

1. b3 {[%emt 0:00:00]} d5 {[%emt 0:00:03]} 2. Bb2 {[%emt 0:00:00]} Bg4 {[%emt 0:00:06]} 3. h3 {[%emt 0:00:41]} Bh5 {[%emt 0:00:04]} 4. d3 {[%emt 0:03:56] A01: Nimzowitsch-Larsen Opening} Nf6 {[%emt 0:02:30]} (4... Nd7 5. g4 Bg6 6. f4 e6 7. Nf3 h5 8. g5 Ne7 9. Nh4 Nf5 10. Nxf5 Bxf5 11. Bg2 e5 {0-1 (54) Rapport,R (2692)-Vachier Lagrave,M (2796) Sharjah 2017}) 5. g4 {[%emt 0:02:21]} Bg6 {[%emt 0:00:02]} 6. Bg2 {[%emt 0:01:17]} e6 {[%emt 0:00:22]} 7. Nd2 {[%emt 0:01:16]} h6 $146 {[%emt 0:05:42]} ({Predecessor:} 7... c6 8. Ngf3 Nbd7 9. Ne5 Qc7 10. Nxd7 Nxd7 11. a3 f6 {1-0 (34) Bernwald,A-Meng,G Wallertheim 1994}) 8. e3 {[%emt 0:02:41]} Bc5 {[%emt 0:07:37]} 9. Ne2 {[%emt 0:02:00]} Nbd7 {[%emt 0:02:21]} 10. a3 {[%emt 0:04:10]} a5 {[%emt 0:01:09]} 11. Qb1 {[%emt 0:05:09]} ({White should try} 11. Nf4 $14) 11... c6 {[%emt 0:02:11]} 12. Nf3 {[%emt 0:05:30]} O-O {[%emt 0:00:43]} 13. Nf4 {[%emt 0:08:48] [#]} Bh7 $1 {[%emt 0:04:48]} 14. g5 {[%emt 0:03:43]} hxg5 {[%emt 0:00:17]} 15. Nxg5 {[%emt 0:00:15]} Bf5 {[%emt 0:06:17]} 16. h4 {[%emt 0:05:02]} e5 {[%emt 0:01:32]} 17. Ne2 {[%emt 0:02:38]} Bg6 {[%emt 0:04:17]} (17... Re8 $17) 18. Bh3 {[%emt 0:03:24]} Nh5 {[%emt 0:07:33]} 19. Rg1 {[%emt 0:04:17]} Re8 {[%emt 0:05:50]} 20. Qd1 {[%emt 0:04:34]} Ndf6 {[%emt 0:00:00]} 21. Ne6 {[%emt 0:12:27]} Qb6 {[%emt 0:08:22]} 22. Nxc5 {[%emt 0:09:22]} Qxc5 {[%emt 0:00:03]} 23. Bxe5 {[%emt 0:10:02]} Rxe5 {[%emt 0:00:16]} 24. d4 {[%emt 0:00:19]} Qe7 {[%emt 0:00:17]} 25. dxe5 {[%emt 0:02:11]} Qxe5 {[%emt 0:00:05]} 26. Qd4 {[%emt 0:03:50]} Qh2 {[%emt 0:00:06]} 27. Bg2 $1 {[%emt 0:00:58]} Bxc2 {[%emt 0:00:32]} 28. Bf3 {[%emt 0:00:51]} Bg6 {[%emt 0:01:14]} 29. Kd2 $2 {[%emt 0:00:54]} (29. Rh1 $11 {and White has nothing to worry.} Qd6 30. Rg1) 29... Qd6 {[%emt 0:03:17]} 30. Bxh5 {[%emt 0:01:10]} Nxh5 {[%emt 0:00:07]} 31. Ng3 {[%emt 0:00:25]} c5 {[%emt 0:00:33]} 32. Qg4 {[%emt 0:00:53]} (32. Qb2 $17 {was worth a try.} Nxg3 33. Rxg3) 32... Qe5 {[%emt 0:01:47]} 33. Rac1 {[%emt 0:00:41]} d4 {[%emt 0:01:56]} 34. exd4 {[%emt 0:00:18]} Rd8 {[%emt 0:00:05]} 35. Rc4 {[%emt 0:00:48]} b5 {[%emt 0:00:15]} 36. Kc1 {[%emt 0:00:19]} Rxd4 {[%emt 0:04:02]} 37. Rxd4 {[%emt 0:00:12]} cxd4 {[%emt 0:00:02]} 38. Qc8+ {[%emt 0:00:36]} (38. Nxh5 $11 {remains equal.} d3 39. Kd2 (39. Qc8+ $2 {Black should try} Kh7 $19 40. Rxg6 Qe1+ 41. Kb2 Qxf2+ 42. Kb1 Qe1+ 43. Ka2 (43. Qc1 $2 d2 $19) 43... Qe2+ 44. Kb1 fxg6 45. Nf6+ gxf6 46. Qc7+ Kg8 47. Qd8+ Kg7 48. Qc7+ Kh6 49. Qf4+ Kg7 50. Qc7+ Kf8 51. Qd8+ Kg7 52. Qc7+) 39... Bxh5 40. Qc8+ Kh7 41. Qc3 Qf4+ 42. Kxd3 Qf3+ 43. Kd4 Qf6+ 44. Kd3 Bg6+ 45. Rxg6 Qf3+ 46. Kd2 Qxf2+ 47. Kd1 Qf1+ 48. Kd2 Qf2+ 49. Kd1 Qf1+ 50. Kd2 Qf2+) 38... Kh7 {[%emt 0:00:06]} 39. Nxh5 {[%emt 0:00:10]} Bxh5 {[%emt 0:00:46]} 40. Qc2+ {[%emt 0:00:45]} Bg6 {[%emt 0:00:47]} 41. Qd2 {[%emt 0:03:07]} d3 {[%emt 0:19:33]} 42. Kb1 {[%emt 0:01:43]} Qd5 {[%emt 0:04:06]} 43. Kb2 {[%emt 0:05:50]} a4 {[%emt 0:02:13]} 44. Qc3 {[%emt 0:00:58]} Qf3 {[%emt 0:03:26]} 45. Qd2 $17 {[%emt 0:01:56]} Qf6+ {[%emt 0:03:47]} 46. Ka2 {[%emt 0:02:22]} axb3+ {[%emt 0:00:39]} 47. Kxb3 {[%emt 0:00:43]} Bf5 {[%emt 0:02:01]} 48. Kb4 {[%emt 0:04:31]} Qd4+ {[%emt 0:03:16]} 49. Kxb5 {[%emt 0:01:22]} Bd7+ {[%emt 0:00:21]} 50. Ka6 {[%emt 0:01:41]} Qd6+ {[%emt 0:00:14]} 51. Ka5 {[%emt 0:01:56]} Qc5+ {[%emt 0:00:05]} 52. Ka6 {[%emt 0:00:10]} Bc8# {[%emt 0:00:12]} 0-1

[Event "22nd Hoogeveen Open 2018"]
[Site "Hoogeveen"]
[Date "2018.10.25"]
[Round "7"]
[White "Husers, Yannic"]
[Black "Hoffman, Ron"]
[Result "0-1"]
[ECO "B27"]
[WhiteElo "1866"]
[BlackElo "2060"]
[Annotator "NA"]
[PlyCount "52"]
[EventDate "2018.10.20"]
[EventType "swiss"]
[EventCountry "NED"]
[SourceTitle "playchess.com"]
[Source "ChessBase"]
[SourceQuality "1"]
[TimeControl "40/5400+30:1800+30"]

1. e4 {[%emt 0:00:00]} c5 {[%emt 0:00:00]} 2. Nf3 {[%emt 0:00:00]} g6 {[%emt 0:00:05]} 3. h4 {[%emt 0:00:10]} d5 {[%emt 0:00:30]} 4. exd5 {[%emt 0:00:30]} Qxd5 {[%emt 0:21:15]} 5. Nc3 {[%emt 0:01:38]} Qd8 {[%emt 0:02:13]} 6. Bc4 {[%emt 0:02:14]} Nf6 {[%emt 0:03:45]} 7. d3 {[%emt 0:00:40]} Bg7 {[%emt 0:00:45]} 8. Bf4 {[%emt 0:02:23]} O-O {[%emt 0:03:22]} 9. Qd2 {[%emt 0:05:50]} Nc6 {[%emt 0:04:26]} 10. O-O-O {[%emt 0:06:08]} Bg4 {[%emt 0:07:26]} 11. Rde1 {[%emt 0:11:16]} Bxf3 {[%emt 0:11:09]} 12. gxf3 {[%emt 0:01:50]} Nd4 {[%emt 0:00:33]} 13. Qe3 {[%emt 0:00:32]} b5 {[%emt 0:01:09]} 14. Nxb5 {[%emt 0:19:48]} Nxb5 {[%emt 0:02:53]} 15. Bxb5 {[%emt 0:01:38]} Nd5 {[%emt 0:00:44]} 16. Qxc5 {[%emt 0:00:31]} Nxf4 {[%emt 0:01:16]} 17. Rxe7 {[%emt 0:00:09]} Rc8 {[%emt 0:17:50]} 18. Qa3 {[%emt 0:03:49]} Rb8 {[%emt 0:08:09]} 19. Rd7 {[%emt 0:09:16]} Qc8 {[%emt 0:03:17]} 20. Qa4 {[%emt 0:03:14]} Bxb2+ {[%emt 0:01:08]} 21. Kd1 {[%emt 0:02:33]} Qc5 {[%emt 0:02:21]} 22. Qxf4 {[%emt 0:04:34]} Qxb5 {[%emt 0:00:15]} 23. Rxa7 {[%emt 0:01:33]} Bd4 {[%emt 0:01:47]} 24. Re7 {[%emt 0:00:55]} Qc5 {[%emt 0:02:24]} 25. Rc7 {[%emt 0:00:52]} Rb1+ {[%emt 0:00:28]} 26. Ke2 {[%emt 0:01:39]} Re8+ {[%emt 0:00:17]} 0-1

[Event "22nd Hoogeveen Open 2018"]
[Site "Hoogeveen"]
[Date "2018.10.25"]
[Round "7"]
[White "Brands, Kevin"]
[Black "De Vries, Emma"]
[Result "0-1"]
[ECO "E63"]
[WhiteElo "1862"]
[BlackElo "1905"]
[Annotator "NA"]
[PlyCount "124"]
[EventDate "2018.10.20"]
[EventType "swiss"]
[EventCountry "NED"]
[SourceTitle "playchess.com"]
[Source "ChessBase"]
[SourceQuality "1"]
[TimeControl "40/5400+30:1800+30"]

1. d4 {[%emt 0:05:44]} Nf6 {[%emt 0:02:40]} 2. c4 {[%emt 0:00:30]} g6 {[%emt 0:00:30]} 3. g3 {[%emt 0:00:30]} Bg7 {[%emt 0:00:30]} 4. Bg2 {[%emt 0:00:30]} d6 {[%emt 0:00:30]} 5. Nf3 {[%emt 0:00:30]} O-O {[%emt 0:00:30]} 6. O-O {[%emt 0:00:30]} Nc6 7. Nc3 {[%emt 0:00:30]} a6 {[%emt 0:01:00]} 8. Qc2 {[%emt 0:00:30]} Rb8 {[%emt 0:03:46]} 9. a3 {[%emt 0:08:23]} Na5 {[%emt 0:03:01]} 10. Nd5 {[%emt 0:03:42]} Nxd5 {[%emt 0:04:17]} 11. cxd5 {[%emt 0:00:08]} b5 {[%emt 0:01:32]} 12. Bd2 {[%emt 0:07:48]} Nc4 {[%emt 0:01:31]} 13. Rac1 {[%emt 0:00:16]} Bb7 {[%emt 0:04:23]} 14. b3 {[%emt 0:03:24]} Nxd2 {[%emt 0:11:23]} 15. Nxd2 {[%emt 0:00:16]} Bxd4 {[%emt 0:02:12]} 16. Qxc7 {[%emt 0:00:49]} Bb6 {[%emt 0:03:10]} 17. Qxd8 {[%emt 0:03:35]} Rfxd8 {[%emt 0:00:13]} 18. b4 {[%emt 0:01:30]} Rbc8 {[%emt 0:01:20]} 19. Nb3 {[%emt 0:05:39]} Rxc1 {[%emt 0:01:26]} 20. Rxc1 {[%emt 0:00:08]} Rc8 {[%emt 0:00:13]} 21. Rxc8+ {[%emt 0:01:58]} Bxc8 {[%emt 0:00:06]} 22. e4 {[%emt 0:01:54]} Bg4 {[%emt 0:02:56]} 23. Na5 {[%emt 0:02:35]} Bd4 {[%emt 0:05:43]} 24. Nc6 {[%emt 0:00:48]} Bb2 {[%emt 0:15:31]} 25. f3 {[%emt 0:01:53]} Bd7 {[%emt 0:00:26]} 26. Nxe7+ {[%emt 0:00:13]} Kf8 {[%emt 0:00:11]} 27. Nc6 {[%emt 0:00:05]} Bxc6 {[%emt 0:04:21]} 28. dxc6 {[%emt 0:00:41]} Ke7 {[%emt 0:01:24]} 29. a4 {[%emt 0:03:40]} Bd4+ {[%emt 0:01:30]} 30. Kh1 {[%emt 0:02:05]} bxa4 {[%emt 0:00:13]} 31. Bf1 {[%emt 0:00:14]} a3 {[%emt 0:00:27]} 32. Bc4 {[%emt 0:00:04]} f6 {[%emt 0:01:15]} 33. Kg2 {[%emt 0:00:34]} Kd8 {[%emt 0:00:59]} 34. f4 {[%emt 0:01:22]} Bc3 {[%emt 0:01:08]} 35. Kf3 {[%emt 0:02:46]} Kc7 {[%emt 0:03:44]} 36. Bd5 {[%emt 0:00:28]} Bxb4 {[%emt 0:00:26]} 37. g4 {[%emt 0:01:37]} g5 {[%emt 0:04:06]} 38. fxg5 {[%emt 0:05:14]} fxg5 {[%emt 0:00:04]} 39. Ke2 {[%emt 0:01:24]} a2 {[%emt 0:05:38]} 40. Bxa2 {[%emt 0:00:05]} Kxc6 {[%emt 0:00:03]} 41. Kd3 {[%emt 0:30:29]} Kc5 {[%emt 0:30:23]} 42. Bb3 {[%emt 0:01:01]} Ba3 {[%emt 0:01:07]} 43. Bf7 {[%emt 0:00:39]} Bb2 {[%emt 0:00:29]} 44. Kc2 {[%emt 0:01:37]} Be5 {[%emt 0:00:19]} 45. h3 {[%emt 0:00:50]} Kd4 {[%emt 0:00:52]} 46. Bd5 {[%emt 0:00:46]} Ke3 {[%emt 0:01:13]} 47. Bc6 {[%emt 0:19:05]} Kf4 {[%emt 0:01:17]} 48. Kd3 {[%emt 0:02:26]} Kg3 {[%emt 0:00:45]} 49. Ke2 {[%emt 0:00:22]} Kxh3 {[%emt 0:00:30]} 50. Kf3 {[%emt 0:00:03]} Kh2 {[%emt 0:01:18]} 51. Bd5 {[%emt 0:02:59]} a5 {[%emt 0:01:17]} 52. Be6 {[%emt 0:00:14]} a4 {[%emt 0:00:34]} 53. Bg8 {[%emt 0:01:13]} a3 {[%emt 0:00:27]} 54. Be6 {[%emt 0:02:39]} Kh3 {[%emt 0:00:19]} 55. Kf2 {[%emt 0:00:58]} Kh4 {[%emt 0:00:47]} 56. Kf3 {[%emt 0:00:22]} h5 {[%emt 0:00:19]} 57. gxh5 {[%emt 0:00:13]} g4+ {[%emt 0:00:10]} 58. Kg2 {[%emt 0:00:23]} Kxh5 {[%emt 0:00:22]} 59. Ba2 {[%emt 0:00:12]} Kg5 {[%emt 0:00:14]} 60. Bb3 {[%emt 0:00:08]} Kf4 {[%emt 0:00:16]} 61. Bd5 {[%emt 0:00:06]} Ke3 {[%emt 0:00:09]} 62. Kg1 {[%emt 0:00:05]} Kf3 {[%emt 0:00:16]} 0-1

[Event "22nd Hoogeveen Open 2018"]
[Site "Hoogeveen"]
[Date "2018.10.25"]
[Round "7"]
[White "Boghossian, Wahe"]
[Black "Kutchoukov, Daniel"]
[Result "1/2-1/2"]
[ECO "B12"]
[WhiteElo "1748"]
[BlackElo "1882"]
[Annotator "NA"]
[PlyCount "104"]
[EventDate "2018.10.20"]
[EventType "swiss"]
[EventCountry "NED"]
[SourceTitle "playchess.com"]
[Source "ChessBase"]
[SourceQuality "1"]
[TimeControl "40/5400+30:1800+30"]

1. e4 {[%emt 0:00:00]} c6 {[%emt 0:00:00]} 2. d4 {[%emt 0:00:02]} d5 {[%emt 0:00:04]} 3. e5 {[%emt 0:00:30]} Bf5 {[%emt 0:00:30]} 4. Nd2 {[%emt 0:00:30]} e6 {[%emt 0:00:30]} 5. Nb3 {[%emt 0:00:30]} Ne7 {[%emt 0:00:30]} 6. Nf3 {[%emt 0:00:30]} Nd7 {[%emt 0:00:30]} 7. Be2 {[%emt 0:07:42]} Nc8 {[%emt 0:02:40]} 8. O-O Be7 {[%emt 0:05:17]} 9. a4 {[%emt 0:04:35]} a5 {[%emt 0:00:00]} 10. Bd2 {[%emt 0:10:47]} b6 {[%emt 0:00:18]} 11. Ne1 {[%emt 0:21:39]} O-O {[%emt 0:28:58]} 12. Bg4 {[%emt 0:18:50]} Bxg4 {[%emt 0:34:49]} 13. Qxg4 {[%emt 0:00:06]} Re8 {[%emt 0:02:48]} 14. Bh6 {[%emt 0:02:20]} Bf8 {[%emt 0:02:23]} 15. Bg5 {[%emt 0:02:40]} Be7 {[%emt 0:02:27]} 16. Bh6 {[%emt 0:05:20]} g6 {[%emt 0:01:03]} 17. f4 {[%emt 0:01:26]} f5 {[%emt 0:00:44]} 18. Qf3 {[%emt 0:02:09]} Bf8 {[%emt 0:02:39]} 19. Bxf8 {[%emt 0:01:11]} Nxf8 {[%emt 0:00:57]} 20. Qc3 {[%emt 0:02:57]} Ne7 {[%emt 0:00:49]} 21. Nf3 {[%emt 0:00:29]} Qc7 {[%emt 0:00:44]} 22. Ng5 {[%emt 0:03:58]} Kg7 {[%emt 0:01:04]} 23. Rf3 {[%emt 0:00:43]} Ng8 {[%emt 0:00:55]} 24. Rh3 {[%emt 0:00:50]} Ra7 {[%emt 0:01:04]} 25. Qg3 {[%emt 0:01:01]} Qe7 {[%emt 0:01:09]} 26. c3 {[%emt 0:02:08]} Rc8 {[%emt 0:00:23]} 27. Re1 {[%emt 0:01:01]} Nh6 {[%emt 0:05:38]} 28. Qd3 {[%emt 0:05:16]} Nf7 {[%emt 0:00:55]} 29. Nxf7 {[%emt 0:00:52]} Qxf7 {[%emt 0:00:13]} 30. Nd2 {[%emt 0:00:42]} Qe7 {[%emt 0:01:45]} 31. Nf3 {[%emt 0:01:50]} Rb7 {[%emt 0:01:51]} 32. b3 {[%emt 0:02:08]} Rbc7 {[%emt 0:01:38]} 33. Rg3 {[%emt 0:00:47]} Rb8 {[%emt 0:00:21]} 34. h4 {[%emt 0:00:28]} h5 {[%emt 0:00:09]} 35. Ng5 {[%emt 0:00:34]} Nd7 {[%emt 0:00:20]} 36. Qf3 {[%emt 0:00:20]} Kh6 {[%emt 0:00:55]} 37. Qd3 {[%emt 0:00:48]} Rcb7 {[%emt 0:00:47]} 38. Qa6 {[%emt 0:00:32]} Nf8 {[%emt 0:00:56]} 39. Ra1 {[%emt 0:00:30]} Ra7 {[%emt 0:00:10]} 40. Qd3 {[%emt 0:00:11]} Rc7 {[%emt 0:00:24]} 41. Kh2 {[%emt 0:03:05]} c5 {[%emt 0:18:26]} 42. c4 {[%emt 0:03:03]} Rd8 {[%emt 0:06:58]} 43. dxc5 {[%emt 0:09:54]} dxc4 {[%emt 0:00:47]} 44. Qxc4 {[%emt 0:00:20]} Rxc5 {[%emt 0:02:26]} 45. Qa6 {[%emt 0:01:16]} Qc7 {[%emt 0:01:57]} 46. Rf1 {[%emt 0:00:33]} Rd2 {[%emt 0:01:33]} 47. Qa8 {[%emt 0:00:22]} Qc8 {[%emt 0:01:15]} 48. Qxc8 {[%emt 0:02:08]} Rxc8 {[%emt 0:00:02]} 49. Nf7+ {[%emt 0:00:47]} Kg7 {[%emt 0:00:01]} 50. Nd6 {[%emt 0:00:08]} Rc6 {[%emt 0:01:44]} 51. Nc4 {[%emt 0:00:18]} Rd4 {[%emt 0:00:30]} 52. Rff3 {[%emt 0:03:30]} Kf7 {[%emt 0:00:43]} 1/2-1/2